Workbook

Sheet NSU
B1: Niina Nukarinen | E1: 6.5.1997 Hamina
B2: SUPERPESIS | E2: Runkosarja | I2: Kärkilyönnit (KL), pesänvälit | P2: Ylempi loppusarja | U2: Alempi loppusarja | AB2: Arvo-ottelut ja mitalit
B3: Vuosi | C3: Sija | D3: Seura | E3: OTT | F3: KUN | G3: LÖI | H3: TOI | I3: KL | J3: 0 > 1 | K3: 1 > 2 | L3: 2 > 3 | M3: 3 > k | N3: KL-% | P3: OTT | Q3: KUN | R3: LÖI | S3: TOI | T3: KL | U3: OTT | V3: KUN | W3: LÖI | X3: TOI | Y3: KL | Z3: IL | AA3: LL | AB3: Halli | AC3: K | AD3: H | AE3: P
B4: 2013 | D4: HP 2 | F4: suomensarja
B5: 2014 | D5: HP 2 | F5: suomensarja
B6: 2015 | D6: HP 2 | F6: suomensarja
B7: 2016 | D7: HP 2 | F7: suomensarja
B8: 2017 | C8: 9. | D8: Pesä Ysit | E8: 26 | F8: 0 | G8: 4 | H8: 9 | I8: 64 | J8: 31 | K8: 14 | L8: 15 | M8: 4 | N8: 44.4 % | O8: 144
B9: 2018 | C9: 6. | D9: Fera | E9: 26 | F9: 1 | G9: 5 | H9: 11 | I9: 80 | J9: 22 | K9: 27 | L9: 25 | M9: 6 | N9: 49.1 % | O9: 163 | P9: 3 | Q9: 0 | R9: 1 | S9: 2 | T9: 15
B10: 2019 | C10: 7. | D10: Fera | E10: 23 | F10: 0 | G10: 4 | H10: 14 | I10: 89 | J10: 15 | K10: 54 | L10: 16 | M10: 4 | N10: 52.4 % | O10: 170 | P10: 3 | Q10: 0 | R10: 0 | S10: 2 | T10: 13
B11: 2020 | C11: 8. | D11: Fera | E11: 20 | F11: 0 | G11: 3 | H11: 4 | I11: 44 | J11: 9 | K11: 16 | L11: 16 | M11: 3 | N11: 46.3 % | O11: 95 | P11: 1 | Q11: 0 | R11: 0 | S11: 0 | T11: 3
B12: 2021 | D12: HP | F12: ykköspesis
B13: 2022 | C13: 1. | D13: HP | F13: ykköspesis
B14: 2023 | C14: 9. | D14: HP | E14: 24 | F14: 2 | G14: 6 | H14: 12 | I14: 86 | J14: 11 | K14: 28 | L14: 39 | M14: 8 | N14: 55.5 % | O14: 155
B15: Yhteensä | E15: =SUM(E8:E14) -> 119 | F15: =SUM(F8:F14) -> 3 | G15: 22 | H15: 50 | I15: 363 | J15: 88 | K15: 139 | L15: 111 | M15: 25 | N15: =PRODUCT(I15/O15) -> 49.9 % | O15: 727 | P15: =SUM(P4:P11) -> 7 | Q15: 0 | R15: 1 | S15: 4 | T15: 31 | U15: 0 | V15: 0 | W15: 0 | X15: 0 | Y15: 0 | Z15: 0 | AA15: 0 | AB15: 0 | AC15: 0 | AD15: 0 | AE15: 0
B16: Pesispörssi | D16: =SUM(F15:H15)+((I15-F15-G15)/3)+(E15/3)+(Z15*25)+(AA15*25)+(AB15*10)+(AC15*25)+(AD15*20)+(AE15*15) -> 227.3
B18: URA SUPERISSA | E18: OTT | F18: KUN | G18: LÖI | H18: TOI | I18: KL | K18: ka/L | L18: ka/T | M18: ka/KL | N18: K - % | P18: ENSIMMÄISET
B19: Runkosarja | E19: =PRODUCT(E15) -> 119 | F19: =PRODUCT(F15) -> 3 | G19: =PRODUCT(G15) -> 22 | H19: =PRODUCT(H15) -> 50 | I19: =PRODUCT(I15) -> 363 | K19: =PRODUCT((F19+G19)/E19) -> 0.21 | L19: =PRODUCT(H19/E19) -> 0.42 | M19: =PRODUCT(I19/E19) -> 3.05 | N19: =PRODUCT(N15) -> 49.9 % | O19: =PRODUCT(O15) -> 727 | P19: Ottelu | R19: 13.05. 2017 LaVe - Pesä Ysit 0-2 (2-3, 2-6) | AA19: 1. ottelu | AC19: 20 v 0 kk 7 pv
B20: Ylempi loppusarja | E20: =PRODUCT(P15) -> 7 | F20: =PRODUCT(Q15) -> 0 | G20: =PRODUCT(R15) -> 1 | H20: =PRODUCT(S15) -> 4 | I20: =PRODUCT(T15) -> 31 | K20: =PRODUCT((F20+G20)/E20) -> 0.14 | L20: =PRODUCT(H20/E20) -> 0.57 | M20: =PRODUCT(I20/E20) -> 4.43 | N20: =PRODUCT(I20/O20) -> 50.0 % | O20: 62 | P20: Lyöty | R20: 19.05. 2017 Pesäkarhut - Pesä Ysit 2-0 (5-1, 4-2) | AA20: 3. ottelu | AC20: 20 v 0 kk 13 pv
B21: Alempi loppusarja | O21: 0 | P21: Tuotu | R21: 13.05. 2017 LaVe - Pesä Ysit 0-2 (2-3, 2-6) | AA21: 1. ottelu | AC21: 20 v 0 kk 7 pv
B22: KAIKKI | E22: =SUM(E19:E21) -> 126 | F22: =SUM(F19:F21) -> 3 | G22: =SUM(G19:G21) -> 23 | H22: =SUM(H19:H21) -> 54 | I22: =SUM(I19:I21) -> 394 | K22: =PRODUCT((F22+G22)/E22) -> 0.21 | L22: =PRODUCT(H22/E22) -> 0.43 | M22: =PRODUCT(I22/E22) -> 3.13 | N22: =PRODUCT(I22/O22) -> 49.9 % | O22: =SUM(O19:O21) -> 789 | P22: Kunnari | R22: 23.05. 2018 Pesä Ysit - Fera 0-2 (3-4, 0-7) | AA22: 31. ottelu | AC22: 20 v 0 kk 17 pv
B24: Ykköspesiksen vuoden pesäpalloilija 2022
B26: Seurat | D26: HP = Haminan Palloilijat (1928), kasvattajaseura
D27: Pesä Ysit (1976)
D28: Fera (1958)

Sheet Arvo-ottelut
B1: ITÄ - LÄNSI - KORTTI
B2: Niina Nukarinen | C2: 6.5.1997 Hamina
B3: B-TYTÖT | C3: Itä - Länsi, tulos | D3: Joukkue | E3: Seura | G3: V | H3: T | I3: H | J3: Up. | K3: Lj. | L3: Palk. | M3: O | N3: K | O3: L | P3: T | Q3: KL | R3: 1 | S3: 2 | T3: 3 | U3: k | V3: KL-% | W3: Pelinjohtaja | X3: Yleisöä
B4: 02.07. 2016 Kouvola | C4: 2-1 (4-2, 9-10, 3-2) | D4: Itä | E4: HP | G4: 1 | K4: jok | M4: 1 | Q4: 1/7 | S4: 0/1 | T4: 1/2 | U4: 0/4 | V4: 14.3 % | W4: Antti Vihtkari | X4: 1615
